fUST/lending_fUST_20250624
["ID","MTS","AMOUNT","RATE_DAILY","PERIOD"]
[367336159,1750755049341,-460.0,0.00019452,2]
[367336160,1750755049354,-460.0,0.00019452,2]
[367336161,1750755049369,-435.22194498,0.00019452,2]
[367336162,1750755049384,-2790.88,0.00019452,2]
[367336163,1750755049397,-460.0,0.00019452,2]
[367336164,1750755049410,-1147.28,0.00019452,2]
[367336165,1750755049424,-460.0,0.00019452,2]
[367336166,1750755049437,-827.6,0.00019452,2]
[367336167,1750755049452,-460.0,0.00019452,2]
[367336168,1750755049466,-460.0,0.00019452,2]
[367336169,1750755049479,-460.0,0.00019452,2]
[367336170,1750755049490,-1404.87,0.00019452,2]
[367336171,1750755049503,-460.0,0.00019452,2]
[367336172,1750755049515,-460.0,0.00019452,2]
[367336173,1750755049529,-567.76,0.00019452,2]
[367336174,1750755049543,-460.0,0.00019452,2]
[367336175,1750755049560,-665.95,0.00019452,2]
[367336176,1750755049575,-494.52,0.00019452,2]
[367336177,1750755049589,-460.0,0.00019452,2]
[367336178,1750755049605,-2058.09,0.00019452,2]
[367336179,1750755049615,-160.0,0.0001947,3]
[367336180,1750755049638,-507.33326579,0.00019473,2]
[367336181,1750755049653,-500.0,0.00019473,2]
[367336182,1750755049668,-500.0,0.00019473,2]
[367336183,1750755049685,-478.71138157,0.00019473,2]
[367336184,1750755049700,-267.06231988,0.00019473,2]
[367336185,1750755049712,-500.0,0.00019473,2]
[367336186,1750755049727,-500.0,0.00019473,2]
[367336187,1750755049744,-500.0,0.00019473,2]
[367336188,1750755049760,-500.0,0.00019473,2]
[367336189,1750755049772,-500.0,0.00019473,2]
[367336190,1750755049783,-500.0,0.00019473,2]
[367336191,1750755049798,-151.0,0.000195,2]
[367336192,1750755049812,-151.0,0.000196,2]
[367336193,1750755049829,-151.0,0.000196,2]
[367336194,1750755049844,-151.0,0.000197,2]
[367336195,1750755049859,-5000.0,0.00019714,2]
[367336196,1750755049873,-1000.0,0.00019721,2]
[367336197,1750755049887,-1000.0,0.00019721,2]
[367336198,1750755049901,-1000.0,0.00019721,2]
[367336199,1750755049916,-460.0,0.00019726,2]
[367336200,1750755049930,-460.0,0.00019726,2]
[367336201,1750755049943,-702.83,0.00019726,2]
[367336202,1750755049956,-702.83,0.00019726,2]
[367336203,1750755049969,-460.0,0.00019726,2]
[367336204,1750755049982,-460.0,0.00019726,2]
[367336205,1750755049994,-460.0,0.00019726,2]
[367336206,1750755050007,-460.0,0.00019726,2]
[367336207,1750755050020,-300.31015506,0.00019726,2]
[367336208,1750755050033,-460.0,0.00019726,2]
[367336209,1750755050046,-460.0,0.00019726,2]
[367336210,1750755050058,-460.0,0.00019726,2]
[367336211,1750755050070,-460.0,0.00019726,2]
[367336212,1750755050082,-460.0,0.00019726,2]
[367336213,1750755050095,-460.0,0.00019726,2]
[367336214,1750755050107,-460.0,0.00019726,2]
[367336215,1750755050119,-460.0,0.00019726,2]
[367336216,1750755050130,-294.40003783,0.00019726,2]
[367336217,1750755050142,-460.0,0.00019726,2]
[367336218,1750755050154,-460.0,0.00019726,2]
[367336219,1750755050166,-460.0,0.00019726,2]
[367336220,1750755050178,-460.0,0.00019726,2]
[367336221,1750755050190,-460.0,0.00019726,2]
[367336222,1750755050201,-460.0,0.00019726,2]
[367336223,1750755050213,-460.0,0.00019726,2]
[367336224,1750755050227,-460.0,0.00019726,2]
[367336225,1750755050238,-460.0,0.00019726,2]
[367336226,1750755050249,-460.0,0.00019726,2]
[367336227,1750755050260,-460.0,0.00019726,2]
[367336228,1750755050271,-460.0,0.00019726,2]
[367336229,1750755050283,-460.0,0.00019726,2]
[367336230,1750755050295,-460.0,0.00019726,2]
[367336231,1750755050307,-460.0,0.00019726,2]
[367336232,1750755050318,-460.0,0.00019726,2]
[367336233,1750755050330,-460.0,0.00019726,2]
[367336234,1750755050341,-181.08200501,0.00019726,2]
[367336235,1750755050353,-460.0,0.00019726,2]
[367336236,1750755050364,-460.0,0.00019726,2]
[367336237,1750755050375,-460.0,0.00019726,2]
[367336238,1750755050387,-460.0,0.00019726,2]
[367336239,1750755050398,-460.0,0.00019726,2]
[367336240,1750755050410,-460.0,0.00019726,2]
[367336241,1750755050421,-460.0,0.00019726,2]
[367336242,1750755050432,-460.0,0.00019726,2]
[367336243,1750755050443,-460.0,0.00019726,2]
[367336244,1750755050455,-460.0,0.00019726,2]
[367336245,1750755050466,-460.0,0.00019726,2]
[367336246,1750755050477,-460.0,0.00019726,2]
[367336247,1750755050489,-460.0,0.00019726,2]
[367336248,1750755050500,-235.39785147,0.00019726,2]
[367336249,1750755050512,-460.0,0.00019726,2]
[367336250,1750755050523,-460.0,0.00019726,2]
[367336251,1750755050534,-460.0,0.00019726,2]
[367336252,1750755050547,-525.25,0.00019726,2]
[367336253,1750755050560,-460.0,0.00019726,2]
[367336254,1750755050572,-460.0,0.00019726,2]
[367336255,1750755050583,-460.0,0.00019726,2]
[367336256,1750755050594,-460.0,0.00019726,2]
[367336257,1750755050607,-460.0,0.00019726,2]
[367336258,1750755050622,-589.59,0.00019726,2]
[367336259,1750755050636,-460.0,0.00019726,2]
[367336260,1750755050651,-460.0,0.00019726,2]
[367336261,1750755050664,-1033.48,0.00019726,2]
[367336262,1750755050677,-460.0,0.00019726,2]
[367336263,1750755050690,-460.0,0.00019726,2]
[367336264,1750755050702,-460.0,0.00019726,2]
[367336265,1750755050714,-460.0,0.00019726,2]
[367336266,1750755050727,-345.36204186,0.00019726,2]
[367336267,1750755050739,-701.42,0.00019726,2]
[367336268,1750755050752,-460.0,0.00019726,2]
[367336269,1750755050764,-460.0,0.00019726,2]
[367336270,1750755050777,-460.0,0.00019726,2]
[367336271,1750755050789,-460.0,0.00019726,2]
[367336272,1750755050801,-460.0,0.00019726,2]
[367336273,1750755050813,-1859.83,0.00019726,2]
[367336274,1750755050825,-460.0,0.00019726,2]
[367336275,1750755050837,-460.0,0.00019726,2]
[367336276,1750755050850,-460.0,0.00019726,2]
[367336277,1750755050863,-460.0,0.00019726,2]
[367336278,1750755050875,-460.0,0.00019726,2]
[367336279,1750755050887,-460.0,0.00019726,2]
[367336280,1750755050898,-460.0,0.00019726,2]
[367336281,1750755050910,-460.0,0.00019726,2]
[367336282,1750755050923,-460.0,0.00019726,2]
[367336283,1750755050934,-460.0,0.00019726,2]
[367336284,1750755050947,-460.0,0.00019726,2]
[367336285,1750755050959,-460.0,0.00019726,2]
[367336286,1750755050971,-460.0,0.00019726,2]
[367336287,1750755050983,-460.0,0.00019726,2]
[367336288,1750755050995,-460.0,0.00019726,2]
[367336289,1750755051007,-460.0,0.00019726,2]
[367336290,1750755051016,-460.0,0.00019726,2]
[367336291,1750755051026,-444.9063548,0.00019726,2]
[367336292,1750755051035,-460.0,0.00019726,2]
[367336293,1750755051263,-460.0,0.00019726,2]
[367336294,1750755051274,-460.0,0.00019726,2]
[367336295,1750755051284,-460.0,0.00019726,2]
[367336296,1750755051294,-460.0,0.00019726,2]
[367336297,1750755051303,-460.0,0.00019726,2]
[367336298,1750755051314,-460.0,0.00019726,2]
[367336299,1750755051324,-460.0,0.00019726,2]
[367336300,1750755051333,-460.0,0.00019726,2]
[367336301,1750755051343,-460.0,0.00019726,2]
[367336302,1750755051354,-460.0,0.00019726,2]
[367336303,1750755051363,-460.0,0.00019726,2]
[367336304,1750755051372,-460.0,0.00019726,2]
[367336305,1750755051382,-392.2592204,0.00019726,2]
[367336306,1750755051392,-460.0,0.00019726,2]
[367336307,1750755051401,-460.0,0.00019726,2]
[367336308,1750755051410,-460.0,0.00019726,2]
[367336309,1750755051421,-460.0,0.00019726,2]
[367336310,1750755051431,-500.0,0.00019726,2]
[367336311,1750755051440,-460.0,0.00019726,2]
[367336312,1750755051451,-460.0,0.00019726,2]
[367336313,1750755051461,-837.07,0.00019726,2]
[367336314,1750755051470,-1145.59,0.00019726,2]
[367336315,1750755051480,-460.0,0.00019726,2]
[367336316,1750755051489,-200.0,0.00019726,10]
[367336317,1750755051498,-460.0,0.00019726,2]
[367336318,1750755051507,-460.0,0.00019726,2]
[367336319,1750755051517,-460.0,0.00019726,2]
[367336320,1750755051527,-460.0,0.00019726,2]
[367336321,1750755051538,-460.0,0.00019726,2]
[367336322,1750755051552,-460.0,0.00019726,2]
[367336323,1750755051563,-460.0,0.00019726,2]
[367336324,1750755051572,-460.0,0.00019726,2]
[367336325,1750755051582,-2160.1,0.00019726,2]
[367336326,1750755051594,-460.0,0.00019726,2]
[367336327,1750755051604,-460.0,0.00019726,2]
[367336328,1750755051614,-460.0,0.00019726,2]
[367336329,1750755051624,-460.0,0.00019726,2]
[367336330,1750755051634,-460.0,0.00019726,2]
[367336331,1750755051643,-460.0,0.00019726,2]
[367336332,1750755051653,-460.0,0.00019726,2]
[367336333,1750755051663,-320.0,0.00019726,2]
[367336334,1750755051672,-460.0,0.00019726,2]
[367336335,1750755051682,-460.0,0.00019726,2]
[367336336,1750755051692,-460.0,0.00019726,2]
[367336337,1750755051702,-460.0,0.00019726,2]
[367336338,1750755051712,-460.0,0.00019726,2]
[367336339,1750755051721,-460.0,0.00019726,2]
[367336340,1750755051731,-460.0,0.00019726,2]
[367336341,1750755051742,-414.00333331,0.00019726,2]
[367336342,1750755051751,-802.49,0.00019726,2]
[367336343,1750755051761,-3492.25,0.00019726,2]
[367336344,1750755051771,-460.0,0.00019726,2]
[367336345,1750755051782,-460.0,0.00019726,2]
[367336346,1750755051794,-460.0,0.00019726,2]
[367336347,1750755051803,-1711.46,0.00019726,2]
[367336348,1750755051814,-460.0,0.00019726,2]
[367336349,1750755051825,-1352.03,0.00019726,2]
[367336350,1750755051834,-1160.85,0.00019726,2]
[367336351,1750755051844,-460.0,0.00019726,2]
[367336352,1750755051855,-3802.86,0.00019726,2]
[367336353,1750755051864,-460.0,0.00019726,2]
[367336354,1750755051875,-460.0,0.00019726,2]
[367336355,1750755051885,-460.0,0.00019726,2]
[367336356,1750755051894,-460.0,0.00019726,2]
[367336357,1750755051905,-460.0,0.00019726,2]
[367336358,1750755051914,-393.8251541,0.00019726,2]
[367336359,1750755051923,-460.0,0.00019726,2]
[367336360,1750755051933,-460.0,0.00019726,2]
[367336361,1750755051942,-460.0,0.00019726,2]
[367336362,1750755051952,-460.0,0.00019726,2]
[367336363,1750755051961,-552.46110891,0.00019726,2]
[367336364,1750755051971,-460.0,0.00019726,2]
[367336365,1750755051980,-512.81,0.00019726,2]
[367336366,1750755051989,-460.0,0.00019726,2]
[367336367,1750755051998,-434.78666665,0.00019726,2]
[367336368,1750755052008,-1227.2,0.00019726,2]
[367336369,1750755052017,-460.0,0.00019726,2]
[367336370,1750755052026,-460.0,0.00019726,2]
[367336371,1750755052036,-460.0,0.00019726,2]
[367336372,1750755052044,-460.0,0.00019726,2]
[367336373,1750755052054,-1558.69,0.00019726,2]
[367336374,1750755052063,-460.0,0.00019726,2]
[367336375,1750755052074,-460.0,0.00019726,2]
[367336376,1750755052083,-890.92,0.00019726,2]
[367336377,1750755052094,-520.00870561,0.00019726,2]
[367336378,1750755052103,-1129.31,0.00019726,2]
[367336379,1750755052113,-460.0,0.00019726,2]
[367336380,1750755052122,-460.0,0.00019726,2]
[367336381,1750755052131,-460.0,0.00019726,2]
[367336382,1750755052140,-460.0,0.00019726,2]
[367336383,1750755052149,-460.0,0.00019726,2]
[367336384,1750755052159,-460.0,0.00019726,2]
[367336385,1750755052168,-460.0,0.00019726,2]
[367336386,1750755052179,-503.39,0.00019726,2]
[367336387,1750755052189,-460.0,0.00019726,2]
[367336388,1750755052198,-3336.33,0.00019726,2]
[367336389,1750755052208,-460.0,0.00019726,2]
[367336390,1750755052217,-460.0,0.00019726,2]
[367336391,1750755052227,-460.0,0.00019726,2]
[367336392,1750755052239,-460.0,0.00019726,2]
[367336393,1750755052248,-460.0,0.00019726,2]
[367336394,1750755052258,-460.0,0.00019726,2]
[367336395,1750755052267,-460.0,0.00019726,2]
[367336396,1750755052279,-460.0,0.00019726,2]
[367336397,1750755052290,-460.0,0.00019726,2]
[367336398,1750755052300,-460.0,0.00019726,2]
[367336399,1750755052309,-460.0,0.00019726,2]
[367336400,1750755052319,-3108.84,0.00019726,2]
[367336401,1750755052329,-1043.22,0.00019726,2]
[367336402,1750755052338,-460.0,0.00019726,2]
[367336403,1750755052349,-460.0,0.00019726,2]
[367336404,1750755052359,-460.0,0.00019726,2]
[367336405,1750755052368,-460.0,0.00019726,2]
[367336406,1750755052378,-2718.8,0.00019726,2]
[367336407,1750755052387,-460.0,0.00019726,2]
[367336408,1750755052397,-2297.74,0.00019726,2]
[367336409,1750755052406,-460.0,0.00019726,2]
[367336410,1750755052416,-460.0,0.00019726,2]
[367336411,1750755052425,-460.0,0.00019726,2]
[367336412,1750755052434,-460.0,0.00019726,2]
[367336413,1750755052443,-472.84,0.00019726,2]
[367336414,1750755052453,-686.97,0.00019726,2]
[367336415,1750755052462,-460.0,0.00019726,2]
[367336416,1750755052470,-439.38736502,0.00019726,2]
[367336417,1750755052479,-1034.53,0.00019726,2]
[367336418,1750755052488,-460.0,0.00019726,2]
[367336419,1750755052498,-460.0,0.00019726,2]
[367336420,1750755052507,-502.1007446,0.00019726,2]
[367336421,1750755052516,-460.0,0.00019726,2]
[367336422,1750755052525,-460.0,0.00019726,2]
[367336423,1750755052535,-460.0,0.00019726,2]
[367336424,1750755052544,-4423.11,0.00019726,2]
[367336425,1750755052554,-460.0,0.00019726,2]
[367336426,1750755052566,-596.41917785,0.00019726,2]
[367336427,1750755052576,-460.0,0.00019726,2]
[367336428,1750755052585,-460.0,0.00019726,2]
[367336429,1750755052594,-460.0,0.00019726,2]
[367336430,1750755052603,-460.0,0.00019726,2]
[367336431,1750755052614,-498.87,0.00019726,2]
[367336432,1750755052623,-460.0,0.00019726,2]
[367336433,1750755052632,-594.48,0.00019726,2]
[367336434,1750755052641,-1356.23,0.00019726,2]
[367336435,1750755052652,-564.81,0.00019726,2]
[367336436,1750755052660,-1527.77,0.00019726,2]
[367336437,1750755052670,-460.0,0.00019726,2]
[367336438,1750755052679,-581.37,0.00019726,2]
[367336439,1750755052688,-460.0,0.00019726,2]
[367336440,1750755052697,-352.59023255,0.00019726,2]
[367336441,1750755052706,-460.0,0.00019726,2]
[367336442,1750755052715,-917.06,0.00019726,2]
[367336443,1750755052724,-556.13,0.00019726,2]
[367336444,1750755052734,-460.0,0.00019726,2]
[367336445,1750755052743,-460.0,0.00019726,2]
[367336446,1750755052752,-1891.95,0.00019726,2]
[367336447,1750755052761,-460.0,0.00019726,2]
[367336448,1750755052771,-460.0,0.00019726,2]
[367336449,1750755052780,-1048.02,0.00019726,2]
[367336450,1750755052790,-1140.59,0.00019726,2]
[367336451,1750755052800,-609.41,0.00019726,2]
[367336452,1750755052809,-261.77,0.00019726,2]
[367336453,1750755052819,-507.09683564,0.00019726,2]
[367336454,1750755052828,-3302.7,0.00019726,2]
[367336455,1750755052839,-460.0,0.00019726,2]
[367336456,1750755052849,-460.0,0.00019726,2]
[367336457,1750755052858,-460.0,0.00019726,2]
[367336458,1750755052867,-417.5763842,0.00019726,2]
[367336459,1750755052877,-1182.78,0.00019726,2]
[367336460,1750755052886,-865.91,0.00019726,2]
[367336461,1750755052896,-2811.91,0.00019726,2]
[367336462,1750755052905,-460.0,0.00019726,2]
[367336463,1750755052914,-434.00746349,0.00019726,2]
[367336464,1750755052924,-460.0,0.00019726,2]
[367336465,1750755052933,-460.0,0.00019726,2]
[367336466,1750755052942,-460.0,0.00019726,2]
[367336467,1750755052952,-468.72,0.00019726,2]
[367336468,1750755052962,-460.0,0.00019726,2]
[367336469,1750755052971,-460.0,0.00019726,2]
[367336470,1750755052981,-1078.54,0.00019726,2]
[367336471,1750755052990,-460.0,0.00019726,2]
[367336472,1750755052999,-460.0,0.00019726,2]
[367336473,1750755053009,-1172.06,0.00019726,2]
[367336474,1750755053018,-460.0,0.00019726,2]
[367336475,1750755053028,-936.84,0.00019726,2]
[367336476,1750755053037,-609.27327585,0.00019726,2]
[367336477,1750755053046,-460.0,0.00019726,2]
[367336478,1750755053055,-460.0,0.00019726,2]
[367336479,1750755053064,-1147.18,0.00019726,2]
[367336480,1750755053074,-460.0,0.00019726,2]
[367336481,1750755053083,-669.18,0.00019726,2]
[367336482,1750755053092,-460.0,0.00019726,2]
[367336483,1750755053102,-460.0,0.00019726,2]
[367336484,1750755053112,-460.0,0.00019726,2]
[367336485,1750755053123,-1364.47,0.00019726,2]
[367336486,1750755053132,-460.0,0.00019726,2]
[367336487,1750755053142,-306.44177707,0.00019726,2]
[367336488,1750755053151,-460.0,0.00019726,2]
[367336489,1750755053161,-460.0,0.00019726,2]
[367336490,1750755053171,-787.57,0.00019726,2]
[367336491,1750755053180,-460.0,0.00019726,2]
[367336492,1750755053189,-460.0,0.00019726,2]
[367336493,1750755053199,-460.0,0.00019726,2]
[367336494,1750755053209,-460.0,0.00019726,2]
[367336495,1750755053218,-1283.7,0.00019726,2]
[367336496,1750755053228,-3667.8,0.00019726,2]
[367336497,1750755053238,-460.0,0.00019726,2]
[367336498,1750755053247,-460.0,0.00019726,2]
[367336499,1750755053257,-460.0,0.00019726,2]
[367336500,1750755053267,-460.0,0.00019726,2]
[367336501,1750755053276,-2790.88,0.00019726,2]
[367336502,1750755053285,-1147.28,0.00019726,2]
[367336503,1750755053296,-460.0,0.00019726,2]
[367336504,1750755053306,-460.0,0.00019726,2]
[367336505,1750755053315,-827.6,0.00019726,2]
[367336506,1750755053324,-460.0,0.00019726,2]
[367336507,1750755053334,-460.0,0.00019726,2]
[367336508,1750755053344,-460.0,0.00019726,2]
[367336509,1750755053353,-1404.87,0.00019726,2]
[367336510,1750755053362,-581.84563137,0.00019726,2]
[367336511,1750755053371,-460.0,0.00019726,2]
[367336512,1750755053380,-567.76,0.00019726,2]
[367336513,1750755053389,-460.0,0.00019726,2]
[367336514,1750755053398,-665.95,0.00019726,2]
[367336515,1750755053407,-494.52,0.00019726,2]
[367336516,1750755053416,-2058.09,0.00019726,2]
[367336517,1750755053425,-800.0,0.00019763,2]
[367336518,1750755053433,-260.40665023,0.00019779,2]
[367336519,1750755053443,-624.0,0.00019791,2]
[367336520,1750755053452,-151.0,0.000198,2]
[367336521,1750755053461,-500.0,0.00019825,2]
[367336522,1750755053471,-500.0,0.00019825,2]
[367336523,1750755053480,-500.0,0.00019825,2]
[367336524,1750755053489,-500.65624776,0.00019891,2]
[367336525,1750755053498,-500.0,0.00019891,2]
[367336526,1750755053508,-151.0,0.000199,2]
[367336527,1750755053519,-151.0,0.000199,2]
[367336528,1750755053529,-168.7242665,0.000199,2]
[367336529,1750755053539,-151.0,0.000199,2]
[367336530,1750755053549,-151.0,0.000199,2]
[367336531,1750755053560,-500.0,0.0001991,2]
[367336532,1750755053571,-203.91087762,0.0001991,2]
[367336533,1750755053580,-500.0,0.0001991,2]
[367336534,1750755053590,-502.89649884,0.0001991,2]
[367336535,1750755053600,-500.0,0.0001991,2]
[367336536,1750755053612,-160.0,0.00019911,4]
[367336537,1750755053622,-500.0,0.00019926,2]
[367336538,1750755053631,-500.0,0.00019926,2]
[367336539,1750755053642,-500.0,0.00019926,2]
[367336540,1750755053653,-500.0,0.00019973,2]
[367336541,1750755053663,-500.0,0.00019973,2]
[367336542,1750755053672,-500.0,0.00019973,2]
[367336543,1750755053682,-500.0,0.00019973,2]
[367336544,1750755053691,-500.0,0.00019973,2]
[367336545,1750755053700,-502.72491854,0.00019973,2]
[367336546,1750755053711,-500.0,0.00019973,2]
[367336547,1750755053720,-500.0,0.00019973,2]
[367336548,1750755053730,-500.0,0.00019973,2]
[367336549,1750755053740,-500.0,0.00019973,2]
[367336550,1750755053750,-100000.0,0.0001999,2]
[367336551,1750755053759,-460.01372123,0.0002,2]
[367336552,1750755053769,-460.0,0.0002,2]
[367336553,1750755053779,-702.83,0.0002,2]
[367336554,1750755053788,-702.83,0.0002,2]
[367336555,1750755053797,-460.0,0.0002,2]
[367336556,1750755053806,-460.0,0.0002,2]
[367336557,1750755053816,-460.0,0.0002,2]
[367336558,1750755053826,-460.0,0.0002,2]
[367336559,1750755053836,-460.0,0.0002,2]
[367336560,1750755053845,-460.0,0.0002,2]
[367336561,1750755053855,-460.0,0.0002,2]
[367336562,1750755053864,-460.0,0.0002,2]
[367336563,1750755053873,-460.0,0.0002,2]
[367336564,1750755053883,-460.0,0.0002,2]
[367336565,1750755053893,-460.0,0.0002,2]
[367336566,1750755053902,-460.0,0.0002,2]
[367336567,1750755053913,-460.0,0.0002,2]
[367336568,1750755053922,-601.88215911,0.0002,2]
[367336569,1750755053931,-460.0,0.0002,2]
[367336570,1750755053940,-460.0,0.0002,2]
[367336571,1750755053950,-460.0,0.0002,2]
[367336572,1750755053959,-460.0,0.0002,2]
[367336573,1750755053968,-460.0,0.0002,2]
[367336574,1750755053978,-340.38774681,0.0002,2]
[367336575,1750755053987,-460.0,0.0002,2]
[367336576,1750755053996,-460.0,0.0002,2]
[367336577,1750755054006,-460.0,0.0002,2]
[367336578,1750755054015,-467.06576305,0.0002,2]
[367336579,1750755054025,-460.0,0.0002,2]
[367336580,1750755054034,-460.0,0.0002,2]
[367336581,1750755054043,-460.0,0.0002,2]
[367336582,1750755054052,-460.0,0.0002,2]
[367336583,1750755054061,-460.0,0.0002,2]
[367336584,1750755054072,-460.0,0.0002,2]
[367336585,1750755054082,-460.0,0.0002,2]
[367336586,1750755054091,-460.0,0.0002,2]
[367336587,1750755054101,-460.0,0.0002,2]
[367336588,1750755054110,-460.0,0.0002,2]
[367336589,1750755054120,-460.0,0.0002,2]
[367336590,1750755054129,-460.0,0.0002,2]
[367336591,1750755054145,-460.0,0.0002,2]
[367336592,1750755054155,-440.0,0.0002,2]
[367336593,1750755054164,-460.0,0.0002,2]
[367336594,1750755054174,-460.0,0.0002,2]
[367336595,1750755054184,-525.25,0.0002,2]
[367336596,1750755054193,-460.0,0.0002,2]
[367336597,1750755054202,-460.0,0.0002,2]
[367336598,1750755054212,-460.0,0.0002,2]
[367336599,1750755054221,-460.0,0.0002,2]
[367336600,1750755054230,-589.59,0.0002,2]
[367336601,1750755054239,-460.0,0.0002,2]
[367336602,1750755054248,-1033.48,0.0002,2]
[367336603,1750755054257,-460.0,0.0002,2]
[367336604,1750755054266,-318.74679534,0.0002,2]
[367336605,1750755054275,-460.0,0.0002,2]
[367336606,1750755054284,-701.42,0.0002,2]
[367336607,1750755054293,-460.0,0.0002,2]
[367336608,1750755054302,-460.0,0.0002,2]
[367336609,1750755054312,-460.0,0.0002,2]
[367336610,1750755054321,-460.0,0.0002,2]
[367336611,1750755054330,-460.0,0.0002,2]
[367336612,1750755054339,-1859.83,0.0002,2]
[367336613,1750755054349,-460.0,0.0002,2]
[367336614,1750755054359,-460.0,0.0002,2]
[367336615,1750755054369,-460.0,0.0002,2]
[367336616,1750755054378,-460.0,0.0002,2]
[367336617,1750755054387,-460.0,0.0002,2]
[367336618,1750755054396,-460.0,0.0002,2]
[367336619,1750755054405,-460.0,0.0002,2]
[367336620,1750755054415,-460.0,0.0002,2]
[367336621,1750755054425,-469.87338448,0.0002,2]
[367336622,1750755054434,-460.0,0.0002,2]
[367336623,1750755054443,-460.0,0.0002,2]
[367336624,1750755054452,-460.0,0.0002,2]
[367336625,1750755054605,-440.0,0.0002,2]
[367336626,1750755054615,-460.0,0.0002,2]
[367336627,1750755054625,-460.0,0.0002,2]
[367336628,1750755054635,-460.0,0.0002,2]
[367336629,1750755054645,-467.00975208,0.0002,2]
[367336630,1750755054655,-460.0,0.0002,2]
[367336631,1750755054665,-591.08734966,0.0002,2]
[367336632,1750755054674,-460.0,0.0002,2]
[367336633,1750755054683,-460.0,0.0002,2]
[367336634,1750755054692,-460.0,0.0002,2]
[367336635,1750755054701,-460.0,0.0002,2]
[367336636,1750755054711,-460.0,0.0002,2]
[367336637,1750755054720,-460.0,0.0002,2]
[367336638,1750755054730,-460.0,0.0002,2]
[367336639,1750755054739,-500.0,0.0002,2]
[367336640,1750755054748,-460.0,0.0002,2]
[367336641,1750755054757,-460.0,0.0002,2]
[367336642,1750755054767,-837.07,0.0002,2]
[367336643,1750755054776,-1145.59,0.0002,2]
[367336644,1750755054786,-460.0,0.0002,2]
[367336645,1750755054795,-460.0,0.0002,2]
[367336646,1750755054804,-460.0,0.0002,2]
[367336647,1750755054814,-460.0,0.0002,2]
[367336648,1750755054824,-460.0,0.0002,2]
[367336649,1750755054833,-468.32196164,0.0002,2]
[367336650,1750755054842,-465.1946172,0.0002,2]
[367336651,1750755054853,-460.0,0.0002,2]
[367336652,1750755054862,-2160.1,0.0002,2]
[367336653,1750755054871,-460.0,0.0002,2]
[367336654,1750755054881,-460.0,0.0002,2]
[367336655,1750755054890,-460.0,0.0002,2]
[367336656,1750755054899,-460.0,0.0002,2]
[367336657,1750755054909,-460.0,0.0002,2]
[367336658,1750755054918,-460.0,0.0002,2]